Workbook

Sheet Calculator
A2: DSR / NSR Calculator | J2: Created: | K2: =NOW() -> 2024-04-24T11:04:48.500
A3: Version 11.00 24/04/24
A5: Instructions | I5: Cell Index
A6: Insert the relevant details into blank fields in BLUE cells | J6: Blue shaded cells require input
A7: Show split loan amounts in correct fields | J7: White shaded cells derived from formulas
A8: There must be at least one borrower | J8: Light Grey shaded cells applies appropriate scales
A10: 1. LOAN DETAILS
I11: Security Position
A12: Application Name / Loan No. / Ref: | J12: Value - Owner Occupied Property
J13: Value - Investment Property/ies
A14: Number of Adult Applicants | D14: max 2 | E14: Number of Dependents | H14: max 5 if more type 5 | J14: Total Security Value | K14: =SUM(K12:K13) -> 0 | N14: Adults | Q14: 1 | R14: 2
J15: Loan to Valuation Ratio (LVR) | K15: =IF(ISERROR(C26/K14),0,C26/K14) -> 0 | N15: Dependants | P15: 0 | Q15: 1 | R15: 2 | S15: 3 | T15: 4 | U15: 5
A16: Product | F16: Rate Checker | G16: resimac.co.nz/
N17: Prime
A18: Interest Rate - Actual | F18: Assessment Rate | G18: =IF(C16="",0%,IF(C16="Prime",Tables!B30,IF(C16="Prime Alt Doc",Tables!B32,IF(C16="Specialist",C18+Tables!C31,IF(C16="Prime >80% LVR",Tables!B33,10%))))) -> 0 | N18: Specialist
A19: Loan Term (yrs) | C19: Loan Amount | D19: IO Term (yrs) | F19: Estimated Actual Repayment* | G19: Assessed Loan Repayment
A20: Portion A | B20: 30 | F20: =-PMT(($C$18/12),((B20-D20)*12),C20,0) -> 0 | G20: =IF(-PMT(($G$18/12),((B20-D20)*12),C20,0),(-PMT(($G$18/12),((B20-D20)*12),C20,0)),"$") -> $ | H20: *If Interest Only, estimated repayment is after Interest Only period has expired (P&I remaining term)
A21: Portion B | B21: 30 | F21: 0 | G21: $
A22: Portion C | B22: 30 | F22: 0 | G22: $
A23: Portion D | B23: 30 | F23: 0 | G23: $
A24: Portion E | B24: 30 | C24: 0 | F24: 0 | G24: $
A25: Portion F | B25: 30 | C25: 0 | F25: 0 | G25: $
A26: Total Loan | C26: =SUM(C20:C23) -> 0 | F26: =SUM(F20:F25) -> 0 | G26: =SUM(G20:G25) -> 0
A28: 2. INCOME AND EXPENSES | B28: (Use Self Employed and Other Incomes Tab for Other Income Types)
C29: Base Income pa | F29: Self Employed Income | G29: Total allowable Supplementary Income | H29: Apportioned and Scaled Rental Income* | I29: Taxable Income | J29: Tax Applied (Including ACC) | K29: Total Net Borrower Income After Tax
A30: Individual Applicant 1 | F30: ='Self Employed and Other Incomes'!B55 -> 0 | G30: ='Self Employed and Other Incomes'!J9 -> 0 | H30: ='Self Employed and Other Incomes'!J$24 -> 0 | I30: =AUTO_GrossIncome-AUTO_SocialSecurityIncome+F30+G30+N30 -> 0 | J30: =IF(Tables!C$52+Tables!C$53+Tables!C54<0,0,Tables!C$52+Tables!C$53+Tables!C54) -> 0 | K30: =IF(I30-J30<0,0,I30-J30) -> 0 | N30: =IF(H30<1,0,H30) -> 0
A31: Individual Applicant 2 | F31: ='Self Employed and Other Incomes'!B56 -> 0 | G31: ='Self Employed and Other Incomes'!J10 -> 0 | H31: ='Self Employed and Other Incomes'!K$24 -> 0 | I31: =AUTO_GrossIncome2-AUTO_SocialSecurityIncome2+F31+G31+N31 -> 0 | J31: =IF(Tables!D$52+Tables!D$53+Tables!D54<0,0,Tables!D$52+Tables!D$53+Tables!D54) -> 0 | K31: =IF(I31-J31<0,0,I31-J31) -> 0 | N31: =IF(H31<1,0,H31) -> 0
A32: Individual Applicant 3 | F32: ='Self Employed and Other Incomes'!B57 -> 0 | G32: ='Self Employed and Other Incomes'!J11 -> 0 | H32: ='Self Employed and Other Incomes'!#REF! ->  | I32: =AUTO_GrossIncome3-AUTO_SocialSecurityIncome3+F32+G32+H32 ->  | J32: =Tables!E$52+Tables!E$53+Tables!E54 ->  | K32: =SUM(I32-J32) -> 
A33: Individual Applicant 4 | F33: ='Self Employed and Other Incomes'!B58 -> 0 | G33: ='Self Employed and Other Incomes'!J12 -> 0 | H33: ='Self Employed and Other Incomes'!#REF! ->  | I33: =AUTO_GrossIncome4-AUTO_SocialSecurityIncome4+F33+G33+H33 ->  | J33: =Tables!F$52+Tables!F$53+Tables!F54 ->  | K33: =SUM(I33-J33) -> 
A34: Totals for Individuals | C34: =SUM(C30:C31) -> 0 | F34: =SUM(F30:F33) -> 0 | G34: =SUM(G30:G33) -> 0 | H34: =SUM(H30:H31) -> 0 | I34: =SUM(I30:I31) -> 0 | J34: =SUM(J30:J31) -> 0 | K34: =SUM(K30:K31) -> 0
H35: =IF(H30<0,0,H30) -> 0
A36: Monthly Living Expenses | E36: Annualised | G36: Annualised with Buffer | H36: =IF(H31<0,0,H31) -> 0
A37: Applicant Advised Non Discretionary Living Expenses | C37: =SUM('Non Discretion Living Expenses'!D27) -> 0 | E37: =SUM(AUTO_TotalDeclaredLivingExpenses*12) -> 0 | G37: ='Non Discretion Living Expenses'!L27*12 -> 0
A39: Monthly Financial Expenses | E39: Limit / Balance | F39: Estimated Repayment Amount pm | G39: Assessed Repayment pm
A40: Proposed Loan | E40: =C26 -> 0 | F40: =F26 -> 0 | G40: =G26 -> 0 | I40: *For all continuing financial expenses documents to evidence limit/outstanding amount, payments and frequency are required with application
A41: Other Mortgages - Owner Occupied | G41: =MAX(Tables!B67:C67) -> 0 | H41: *
A42: Other Mortgages - Investment | G42: =MAX(Tables!B68:C68) -> 0 | H42: *
A43: Personal Loans | G43: =AUTO_PersonalLoans -> 0 | H43: *
A44: Credit Cards Limit | G44: =MAX(F44,Tables!B69) -> 0 | H44: *
A45: Student Loan, Other Debts | G45: =F45 -> 0 | H45: *
A47: 3. NSR CALCULATION
C48: Annual
A49: Individual Gross Income
A50: Taxable Income | C50: =C34+F34+(G34-'Self Employed and Other Incomes'!I13)*Tables!H59 -> 0 | H50: Frequency Converter
A51: Net Rental Income | C51: ='Self Employed and Other Incomes'!B24-'Self Employed and Other Incomes'!C24-'Self Employed and Other Incomes'!D24-'Self Employed and Other Incomes'!E24-'Self Employed and Other Incomes'!F24 -> 0
A52: Tax Applicable | C52: =J34 -> 0
A53: Net Cash after Tax* | C53: =C50+C51-C52 -> 0 | H53: Amount | J53: Monthly | K53: Annually
A54: Government Benefits / Tax Free | C54: ='Self Employed and Other Incomes'!I13 -> 0 | I54: Weekly | J54: =H54*52/12 -> 0 | K54: =H54*52 -> 0
A55: Boarder Income | C55: =IF('Self Employed and Other Incomes'!B15>100,5200,'Self Employed and Other Incomes'!B15*52) -> 0 | I55: Fortnightly | J55: =H55*26/12 -> 0 | K55: =H55*26 -> 0
A56: Living Expenses (as per scales) | C56: =IF(AUTO_NumberAdults=""," 0",IF('Non Discretion Living Expenses'!D27=0," 0",MAX('Non Discretion Living Expenses'!L34,'Non Discretion Living Expenses'!P34))) -> 0 | D56: =SUM(C53+C54+C55-C56) -> 0 | I56: 4 weekly | J56: =H56*13/12 -> 0 | K56: =H56*13 -> 0
A57: Total Financial Expense | C57: =(G40+G41+G42+G43+G44+G45)*12 -> 0 | I57: Monthly | K57: =H57*12 -> 0
I58: Quarterly | J58: =H58*4/12 -> 0 | K58: =H58*4 -> 0
A59: Surplus Cash after Financial Expense | C59: =SUM(C53+C54+C55-C56-C57) -> 0 | I59: Annually | J59: =H59/12 -> 0
E60: Minimum: Surplus (+) | O60: =Tables!J75=-IPMT(C18,1,20,'Self Employed and Other Incomes'!G24) -> TRUE
A61: Net Service Ratio (NSR) | C61: =IF(ISERROR(D56/C57),0,(D56/C57)) -> 0
E62: Minimum NSR = 1.00
B63: =IF(C14="","Incomplete No Adult Applicants (C14)",IF(C16="","Incomplete Product Required (C16)",IF(AUTO_LoanInterestRate="","Incomplete Actual Rate Required (C18)",IF(AUTO_LoanAmount="","Incomplete Loan amount Required (C20-C23)",IF('Non Discretion Living Expenses'!D9="","Incomplete Living Expenses (2nd Tab)",IF(K34=0,"Incomplete no incomes entered",IF(C61>1.001,"Pass","Fail"))))))) -> Incomplete No Adult Applicants (C14)
F64: NOTE: This servicing calculator was prepared as a guide for loan assessment. If NSR results are marginal, other mitigating factors may be considered. Please provide a detailed explanation in the "Comments" section. | J64: DTI
J65: =Tables!H31 -> 0
A68: 4. COMMENTS
K96: 1

Sheet Non Discretion Living Expenses
A1: NON DISCRETIONARY LIVING EXPENSES
H2: ******Hidden Cells***** for Underwriter use*****
B3: MONTHLY LIVING EXPENSES | J3: Additional Enquiry (enter all fields if change is made to any)
B4: all catergories must be answered. Mark as n/a where not applicable
D5: Customer Estimated | F5: Notes | H5: Customer Estimated | L5: Buffered | N5: Benchmark | P5: Buffered Benchmark | R5: Adjusted why? verified how? With what document? Must be answered where customer declares an non benchmarkable expense or if deemed immaterial
B6: Utilities | E6: =IF(D6="","input required",IF(D6<100,"Low input","")) -> input required | H6: =D6 -> 0 | L6: =MAX(D6:J6)*1.05 -> 0
A7: . | B7: Rates | E7: =IF(D7="","input required",IF(D7<120,"Low input","")) -> input required | F7: As per Council websites | H7: 0 | L7: =MAX(D7:J7)*1.05 -> 0 | Q7: Rates
B8: Property Maintenance | E8: =IF(D8="","input required",IF(D8<50,"Low input","")) -> input required | H8: 0 | L8: 0
B9: Food & Takeaways | E9: =IF(D9="","input required",IF(D9<500,"Low input","")) -> input required | H9: 0 | L9: 0
B10: Transport | E10: =IF(D10="","input required",IF(D10<100,"Low input","")) -> input required | H10: 0 | L10: 0
B11: Clothing and Footwear | E11: =IF(D11="","input required",IF(D11<50,"Low input","")) -> input required | H11: 0 | L11: 0
B12: Personal Care | E12: =IF(D12="","input required",IF(D12<10,"Low input","")) -> input required | H12: 0 | L12: 0
B13: Childcare | E13: =IF(D13="","input required",IF(D13<100,"Low input","")) -> input required | H13: 0 | L13: 0
A14: . | B14: Insurances | E14: =IF(D14="","input required",IF(D14<150,"Low input","")) -> input required | H14: 0 | L14: 0
B15: Communications | E15: =IF(D15="","input required",IF(D15<50,"Low input","")) -> input required | H15: 0 | L15: 0
B16: Medical and Health | E16: =IF(D16="","input required",IF(D16<50,"Low input","")) -> input required | H16: 0 | L16: 0
B17: Education and Schooling | E17: =IF(D17="","input required",IF(D17<20,"Low input","")) -> input required | F17: Private Schooling or payments required above donations please indicate | H17: 0 | L17: 0
B18: Recreation and Entertainment | E18: =IF(D18="","input required",IF(D18<100,"Low input","")) -> input required | H18: 0 | L18: 0
B19: Regular Savings | E19: =IF(D19="","input required",IF(D19<500,"Low input","")) -> input required | H19: 0 | L19: 0
A20: . | B20: Body Corp Fees | E20: input required | F20: Supporting document: | H20: 0 | L20: 0 | Q20: BC fees
B21: Tithings | E21: =IF(D21="","input required",IF(D21<5,"Low input","")) -> input required | H21: 0 | L21: 0 | Q21: Tithing
A22: . | B22: Child Maintenance | E22: =IF(D22="","input required",IF(D22<250,"Low input","")) -> input required | F22: Supporting document: | H22: 0 | L22: 0 | Q22: Child Maint
A23: . | B23: All Other Regular Expenses | E23: =IF(D23="","input required",IF(D23<20,"Low input","")) -> input required | F23: Supporting document: | H23: 0 | L23: 0 | Q23: Other
A25: . | B25: Rent or Board Paid | E25: =IF(D25="","input required",IF(D25<650,"low","")) -> input required | F25: Supporting document: | H25: =D25 -> 0 | L25: =MAX(D25:J25)*1.05 -> 0 | Q25: Rent/Board
B27: Total Monthly Expenses | D27: =SUM(D6:D25) -> 0 | H27: =SUM(H6:H25) -> 0 | J27: =SUM(J6:J25) -> 0 | L27: =SUM(L6:L25) -> 0
B29: Annualised | D29: =SUM(D27*12) -> 0 | G29: Annualised
B30: Benckmark Items Total | D30: =SUM(D6+D8+D9+D10+D11+D12+D13+D15+D17)*12 -> 0 | G30: Benchmarked expense type | J30: =SUM(J6+J8+J9+J10+J11+J12+J13+J14+J15+J16+J17+J18+J21)*12 -> 0 | L30: =SUM(L6+L8+L9+L10+L11+L12+L13+L15+L16+L18)*12 -> 0 | N30: =Tables!B25*0.95 -> 11954.42461 | P30: =Tables!B25 -> 12583.60485
B31: Non Benchmark Total | G31: Not Benchmarked expense type | J31: =SUM(J7+J19+J20+J22+J23+J25)*12 -> 0 | L31: =SUM(L7+L14+L17+L19+L20+L21+L22+L23+L25)*12 -> 0 | P31: =SUM(L31) -> 0
G34: Total | H34: =SUM(H27*12) -> 0 | J34: =SUM(J30+J31) -> 0 | L34: =SUM(L30+L31) -> 0 | P34: =P30+P31 -> 12583.60485
J43: =MAX(L37,L34) -> 0

Sheet Self Employed and Other Incomes
A1: SELF EMPLOYED + OTHER INCOME WORKSHEET
A3: Note: All figures are to be entered at 100% and calculator will reduce assessment percentage where appropriate
A5: 2. INCOME AND EXPENSES
A7: Additional Incomes
B8: Base Income | C8: Overtime / Shift Allowance pa | D8: Bonus pa | E8: Commission pa | F8: Investment Income pa | G8: Casual / Second Job pa | H8: Child Support/ Maintenance pa* | I8: Working For Families, Company Car Addback pa | J8: Total allowable Supplementary Income
A9: Individual Applicant 1 | B9: =AUTO_GrossIncome -> 0 | J9: =SUM(C9*Tables!$A$59,D9*Tables!$B$59,E9*Tables!$C$59,F9*Tables!$D$59,G9*Tables!$E$59,H9*Tables!$F$59,I9*Tables!$G$59) -> 0
A10: Individual Applicant 2 | B10: =AUTO_GrossIncome2 -> 0 | J10: =SUM(C10*Tables!$A$59,D10*Tables!$B$59,E10*Tables!$C$59,F10*Tables!$D$59,G10*Tables!$E$59,H10*Tables!$F$59,I10*Tables!$G$59) -> 0
A11: Individual Applicant 3 | B11: =AUTO_GrossIncome3 -> 0 | J11: =SUM(C11*Tables!$A$59,D11*Tables!$B$59,E11*Tables!$C$59,F11*Tables!$D$59,G11*Tables!$E$59,H11*Tables!$F$59,I11*Tables!$G$59) -> 0
A12: Individual Applicant 4 | B12: =AUTO_GrossIncome4 -> 0 | J12: =SUM(C12*Tables!$A$59,D12*Tables!$B$59,E12*Tables!$C$59,F12*Tables!$D$59,G12*Tables!$E$59,H12*Tables!$F$59,I12*Tables!$G$59) -> 0
A13: Totals for Individuals | B13: =Calculator!C34 -> 0 | C13: =SUM(C9:C12) -> 0 | D13: 0 | E13: 0 | F13: 0 | G13: 0 | H13: 0 | I13: 0 | J13: 0
A15: Boarder Income p.w | C15: *must be existing and evidenced continuously over last 90 days | H15: *max age 13 must be through IRD
A17: Taxable Rental Income | H17: Applicant Ownership%/Tax Split % =100% | J17: Taxable Rental Income Split Per Applicant
A18: Address | B18: Gross Rental Income pa | C18: Rates pa | D18: Insurances pa | E18: Body Corp pa | F18: Regular Maintenance pa | G18: Lending against security that is tax deductable | H18: 1 | I18: 2 | J18: TaxaTaxable profit/ loss
H19: 0.5 | I19: 0.5 | J19: =Tables!E75-Tables!I75 -> 0 | K19: =Tables!F75-Tables!J75 -> 0
J20: =Tables!E76-Tables!I76 -> 0 | K20: =Tables!F76-Tables!J76 -> 0
J21: =Tables!E77-Tables!I77 -> 0 | K21: =Tables!F77-Tables!J77 -> 0
J22: =Tables!E78-Tables!I78 -> 0 | K22: =Tables!F78-Tables!J78 -> 0
J23: =Tables!E79-Tables!I79 -> 0 | K23: =Tables!F79-Tables!J79 -> 0
B24: =SUM(B19:B23) -> 0 | C24: =SUM(C19:C23) -> 0 | D24: =SUM(D19:D23) -> 0 | E24: 0 | F24: 0 | G24: =SUM(G19:G23) -> 0 | J24: =SUM(J19:J23) -> 0 | K24: =SUM(K19:K23) -> 0 | L24: * | AE24: *
A26: If interest exempt max term | B26: New Build | C26: CCC issued | D26: Max deductable term (yrs) | I26: * Automatically added to Calculator worksheet and scaled 80%
D27: =IF(C27="","",IF(C27>Tables!L78,Tables!D75,"not valid CCC outside range")) ->  | F27: *if no deductability is being claimed (G17-G21)max term 30 years
A29: Self Employed
A31: Most Recent Year
A32: Financial Year End dd/mm/yyyy
B34: Net Profit Before Tax | C34: Shareholder Salary* | D34: Director Fees* | E34: Wages / Salary* | F34: Home Office | G34: One off / Significant Item | H34: Interest** | I34: Depreciation*** | J34: % Depn Addback | L34: Total Income
A35: Individual Applicant 1 | J35: =IF(I35<Tables!C88,I35,Tables!C88) -> 0 | L35: =SUM(B35,C35,D35,E35,F35,G35,H35,J35) -> 0
A36: Individual Applicant 2 | J36: =IF(I36<Tables!C89,I36,Tables!C89) -> 0 | L36: =SUM(B36,C36,D36,E36,F36,G36,H36,J36) -> 0
A37: Individual Applicant 3 | J37: =IF(I37<Tables!C90,I37,Tables!C90) -> 0 | L37: =SUM(B37,C37,D37,E37,F37,G37,H37,J37) -> 0
A38: Individual Applicant 4 | J38: =IF(I38<Tables!C91,I38,Tables!C91) -> 0 | L38: =SUM(B38,C38,D38,E38,F38,G38,H38,J38) -> 0
E40: *paid to applicants | H40: **Where being refinanced or repaid | I40: ***not all asset depreciation is suitable for addback i.e core business assets -taxi drivers vehicle
A43: Year Prior
A44: Financial Year End dd/mm/yyyy
B46: Net Profit Before Tax | C46: Shareholder Salary* | D46: Director Fees* | E46: Wages / Salary* | F46: Home Office | G46: One off / Significant Item | H46: Interest** | I46: Depreciation*** | J46: % Depn Addback | L46: Total Income
A47: Individual Applicant 1 | J47: =IF(I47<Tables!C94,I47,Tables!C94) -> 0 | L47: =SUM(B47,C47,D47,E47,F47,G47,H47,J47) -> 0
A48: Individual Applicant 2 | J48: =IF(I48<Tables!C95,I48,Tables!C95) -> 0 | L48: =SUM(B48,C48,D48,E48,F48,G48,H48,J48) -> 0
A49: Individual Applicant 3 | J49: =IF(I49<Tables!C96,I49,Tables!C96) -> 0 | L49: =SUM(B49,C49,D49,E49,F49,G49,H49,J49) -> 0
A50: Individual Applicant 4 | J50: =IF(I50<Tables!C97,I50,Tables!C97) -> 0 | L50: =SUM(B50,C50,D50,E50,F50,G50,H50,J50) -> 0
A53: Income used in servicing for Self Employed Applicants
A55: Individual Applicant 1 | B55: =IF(Tables!E94<L35,Tables!E94,L35) -> 0 | C55: * | D55: * Auto added to calculator worksheet
A56: Individual Applicant 2 | B56: =IF(Tables!E95<L36,Tables!E95,L36) -> 0 | C56: *
A57: Individual Applicant 3 | B57: =IF(Tables!D96<L37,Tables!D96,L37) -> 0 | C57: *
A58: Individual Applicant 4 | B58: =IF(Tables!D97<L38,Tables!D97,L38) -> 0 | C58: *
A61: Age Check of Financials | B61: =IF(B32="","",IF(Tables!C83>270,"Interims or more up-to-date financials required","Age of financials acceptable")) -> 

Sheet Tables (hidden)
A2: Living Expenses (Annual) | E2: 10 | F2: 11 | G2: 12 | H2: 13 | I2: 14 | J2: 15 | K2: 20 | L2: 21 | M2: 22 | N2: 23 | O2: 24 | P2: 25
D3: Adults | E3: 1 | F3: 1 | G3: 1 | H3: 1 | I3: 1 | J3: 1 | K3: 2 | L3: 2 | M3: 2 | N3: 2 | O3: 2 | P3: 2
A4: Year | B4: Pre-tax monthly income | C4: annualised | D4: Dependants | E4: 0 | F4: 1 | G4: 2 | H4: 3 | I4: 4 | J4: 5 | K4: 0 | L4: 1 | M4: 2 | N4: 3 | O4: 4 | P4: 5
A5: 2022 | B5: 1000 | C5: =SUM(B5*12) -> 12000 | E5: 594.9812021 | F5: 875.9888564 | G5: 1137.827962 | H5: 1386.738202 | I5: 1625.998915 | J5: 1857.619374 | K5: 1048.633737 | L5: 1301.56395 | M5: 1543.899984 | N5: 1777.993634 | O5: 2005.382328 | P5: 2227.145026
A6: 2022 | B6: 2000 | C6: =SUM(B6*12) -> 24000 | E6: 745.0563179 | F6: 1096.943953 | G6: 1424.82806 | H6: 1736.522188 | I6: 2036.13284 | J6: 2326.176097 | K6: 1313.135925 | L6: 1629.864004 | M6: 1933.32568 | N6: 2226.465954 | O6: 2511.210048 | P6: 2788.909073
A7: 2022 | B7: 3000 | C7: 36000 | E7: 849.8292306 | F7: 1251.200766 | G7: 1625.193297 | H7: 1980.719148 | I7: 2322.462293 | J7: 2653.292638 | K7: 1497.794551 | L7: 1859.062247 | M7: 2205.197964 | N7: 2539.560841 | O7: 2864.346831 | P7: 3181.097045
A8: 2022 | B8: 4000 | C8: 48000 | E8: 932.9856386 | F8: 1373.631671 | G8: 1784.219642 | H8: 2174.533956 | I8: 2549.716917 | J8: 2912.919251 | K8: 1644.354836 | L8: 2040.972839 | M8: 2420.978188 | N8: 2788.058715 | O8: 3144.625251 | P8: 3492.369704
A9: 2022 | B9: 5000 | C9: 60000 | E9: 1003.050458 | F9: 1476.787873 | G9: 1918.209944 | H9: 2337.835858 | I9: 2741.194093 | J9: 3131.671988 | K9: 1767.841651 | L9: 2194.244645 | M9: 2602.787417 | N9: 2997.434746 | O9: 3380.778511 | P9: 3754.637677
A10: 2022 | B10: 6000 | C10: 72000 | E10: 1064.185953 | F10: 1566.797459 | G10: 2035.124016 | H10: 2480.325949 | I10: 2908.268695 | J10: 3322.54605 | K10: 1875.59084 | L10: 2327.982913 | M10: 2761.426192 | N10: 3180.127107 | O10: 3586.83551 | P10: 3983.481231
A11: 2022 | B11: 7000 | C11: 84000 | E11: 1118.773359 | F11: 1647.166317 | G11: 2139.51568 | H11: 2607.554241 | I11: 3057.448306 | J11: 3492.976013 | K11: 1971.799252 | L11: 2447.396771 | M11: 2903.073518 | N11: 3343.251691 | O11: 3770.822197 | P11: 4187.813856
A12: 2022 | B12: 8000 | C12: 96000 | E12: 1168.317322 | F12: 1720.10973 | G12: 2234.262381 | H12: 2723.027646 | I12: 3192.844902 | J12: 3647.659597 | K12: 2059.118768 | L12: 2555.777734 | M12: 3031.633753 | N12: 3491.304856 | O12: 3937.809972 | P12: 4373.267765
A13: 2022 | B13: 9000 | C13: 108000 | E13: 1213.8362 | F13: 1787.127023 | G13: 2321.311605 | H13: 2829.119682 | I13: 3317.241514 | J13: 3789.776271 | K13: 2139.344211 | L13: 2655.353536 | M13: 3149.749408 | N13: 3627.329784 | O13: 4091.231211 | P13: 4543.6549
A14: 2022 | B14: 10000 | C14: 120000 | E14: 1256.054945 | F14: 1849.285542 | G14: 2402.049733 | H14: 2927.520012 | I14: 3432.619333 | J14: 3921.589441 | K14: 2213.753286 | L14: 2747.710062 | M14: 3259.301642 | N14: 3753.492862 | O14: 4233.529363 | P14: 4701.688915
A15: 2022 | B15: 12500 | C15: 150000 | E15: 1350.381437 | F15: 1988.162125 | G15: 2582.437484 | H15: 3147.369228 | I15: 3690.400208 | J15: 4216.090712 | K15: 2380.000458 | L15: 2954.056013 | M15: 3504.066804 | N15: 4035.370512 | O15: 4551.456518 | P15: 5054.773648
A16: 2022 | B16: 15000 | C16: 180000 | E16: 1432.686606 | F16: 2109.339752 | G16: 2739.83594 | H16: 3339.20003 | I16: 3915.328516 | J16: 4473.05963 | K16: 2525.060464 | L16: 3134.104458 | M16: 3717.638171 | N16: 4281.324612 | O16: 4828.865838 | P16: 5362.859931
A17: 2022 | B17: 20000 | C17: 240000 | E17: 1572.876032 | F17: 2315.740181 | G17: 3007.930878 | H17: 3665.943181 | I17: 4298.446257 | J17: 4910.751767 | K17: 2772.139466 | L17: 3440.778858 | M17: 4081.411769 | N17: 4700.255338 | O17: 5301.373871 | P17: 5887.619674
A18: 2022 | B18: 25000 | C18: 300000 | E18: 1690.994972 | F18: 2489.646306 | G18: 3233.818743 | H18: 3941.246076 | I18: 4621.248504 | J18: 5279.536581 | K18: 2980.320003 | L18: 3699.172492 | M18: 4387.915285 | N18: 5053.232413 | O18: 5699.4934 | P18: 6329.764753
A19: 2022 | B19: 1000000 | C19: =SUM(B19*12) -> 12000000 | E19: =SUM(E18*1.1) -> 1860.094469 | F19: =SUM(F18*1.1) -> 2738.610937 | G19: 3557.200617 | H19: 4335.370683 | I19: 5083.373355 | J19: 5807.490239 | K19: 3278.352003 | L19: 4069.089741 | M19: 4826.706813 | N19: 5558.555654 | O19: 6269.44274 | P19: 6962.741228
A21: Adults | B21: =AUTO_NumberAdults -> 0 | C21: =IF(B21=1,"10","20") -> 20 | D21: Gross income | E21: =SUM('Self Employed and Other Incomes'!B13+'Self Employed and Other Incomes'!C13+'Self Employed and Other Incomes'!D13+'Self Employed and Other Incomes'!E13+'Self Employed and Other Incomes'!G13+'Self Employed and Other Incomes'!H13+'Self Employed and Other Incomes'!I13)/12 -> 0
A22: Dependants | B22: =AUTO_NumberChildren -> 0 | C22: =B22 -> 0 | D22: Roundup 000's | E22: =ROUNDUP(E21,-3) -> 0 | M22: Adults | O22: 1 | P22: 2
C23: =SUM(C21+C22) -> 20 | M23: Dependants | N23: 0 | O23: 1 | P23: 2 | Q23: 3 | R23: 4 | S23: 5
A24: Income banded expense | B24: =_xlfn.XLOOKUP(C23,E2:P2,_xlfn.XLOOKUP(E22,B5:B19,E5:P19,,1)) -> 1048.633737
A25: annualised | B25: =SUM(B24*12) -> 12583.60485
A28: Benchmark Servicing Interest Rates | E28: KS % | H28: DTI
B29: Floor | C29: Loading | G29: Gross Income | H29: =Calculator!C34+Calculator!F34+'Self Employed and Other Incomes'!C13+'Self Employed and Other Incomes'!D13+'Self Employed and Other Incomes'!E13+'Self Employed and Other Incomes'!F13+'Self Employed and Other Incomes'!G13+'Self Employed and Other Incomes'!H13+'Self Employed and Other Incomes'!I13+'Self Employed and Other Incomes'!B15+'Self Employed and Other Incomes'!B24 -> 0
A30: Prime | B30: 0.09 | E30: 0.03 | G30: Total Debt | H30: =AUTO_ExistingOwnerOccupiedLoans+AUTO_ExistingInvestmentLoans+Calculator!E42+Calculator!E43+AUTO_CreditCardLimit+Calculator!E45 -> 0
A31: Specialist | B31: 0 | C31: 0.0175 | E31: 0.04 | H31: =IF(ISERROR(H30/H29),0,(H30/H29)) -> 0
A32: Prime Alt Doc | B32: 0.095 | E32: 0.06
A33: Prime >80% LVR | B33: 0.1 | E33: 0.08
E34: 0.1
B36: Tax Rates effective 01/04/2021
B37: Tax Boundary | C37: Tax Due | D37: Excess %
B38: 0 | C38: 0 | D38: 0.105
B39: 14000 | C39: =C38+D38*(B39-B38) -> 1470 | D39: 0.175
B40: 48000 | C40: =C39+D39*(B40-B39) -> 7420 | D40: 0.3
B41: 70000 | C41: =C40+D40*(B41-B40) -> 14020 | D41: 0.33
B42: 180000 | C42: =C41+D41*(B42-B41) -> 50320 | D42: 0.39
C45: Applicant 1 | D45: Applicant 2 | E45: Applicant 3 | F45: Applicant 4
B46: ANNUAL INCOME: | C46: =Calculator!$I30 -> 0 | D46: =Calculator!$I31 -> 0 | E46: =Calculator!$I32 ->  | F46: =Calculator!$I33 -> 
B48: Tax Boundary | C48: =VLOOKUP(C46,$B$38:$D$43,1) -> 0 | D48: =VLOOKUP(D46,$B$38:$D$42,1) -> 0 | E48: =VLOOKUP(E46,$B$38:$D$42,1) ->  | F48: =VLOOKUP(F46,$B$38:$D$42,1) -> 
B49: Tax Due on Boundary | C49: =VLOOKUP(C46,$B$38:$D$43,2) -> 0 | D49: =VLOOKUP(D46,$B$38:$D$42,2) -> 0 | E49: =VLOOKUP(E46,$B$38:$D$42,2) ->  | F49: =VLOOKUP(F46,$B$38:$D$42,2) -> 
B50: % Due on Excess | C50: =VLOOKUP(C46,$B$38:$D$43,3) -> 0.105 | D50: =VLOOKUP(D46,$B$38:$D$42,3) -> 0.105 | E50: =VLOOKUP(E46,$B$38:$D$42,3) ->  | F50: =VLOOKUP(F46,$B$38:$D$42,3) -> 
B52: Tax due on Income: | C52: =IF(C46>0,C49+(C46-C48)*C50,0) -> 0 | D52: =IF(D46>0,D49+(D46-D48)*D50,0) -> 0 | E52: =IF(E46>0,E49+(E46-E48)*E50,0) ->  | F52: =IF(F46>0,F49+(F46-F48)*F50,0) -> 
B53: KS** | C53: =SUM(C46*Calculator!D30) -> 0 | D53: =SUM(D46*Calculator!D31) -> 0 | E53: =SUM(E46*Calculator!D32) ->  | F53: =SUM(F46*Calculator!D33) ->  | G53: ** % as selected caluclator page
B54: ACC* | C54: =+IF(C46>139384,2132.57,C46*0.0153) -> 0 | D54: =+IF(D46>139384,2132.57,D46*0.0153) -> 0 | E54: =+IF(E46>130911,1819.66,E46*0.0139) ->  | F54: =+IF(F46>130911,1819.66,F46*0.0139) ->  | G54: *ACC tops out at 2132.57 for income over 139,384
B55: NET INCOME (per annum): | C55: =C46-C52-C53-C54 -> 0 | D55: =D46-D52-D53-D54 -> 0 | E55: =E46-E52-E53-E54 ->  | F55: =F46-F52-F53-F54 -> 
A57: % Scaling applied to income types
A58: Overtime / Shift Allowance | B58: Bonus | C58: Commission | D58: Investment Income | E58: Casual / Second Job | F58: Child Support/ Maintenance | G58: Working For Families, Company Car Addback | H58: Rental Income
A59: 0.8 | B59: 0.8 | C59: 0.8 | D59: 0.8 | E59: 0.8 | F59: 0.8 | G59: 1 | H59: 0.9
A61: Other mortgage lending default term calculation
A62: =MAX(Calculator!B20:B25) -> 30
B66: calculated benchmark | C66: Advised
A67: O/O | B67: =-PMT((Calculator!G18/12),Tables!B71*12,Calculator!E41,0) -> 0 | C67: =AUTO_OtherMortgages -> 0
A68: Investment | B68: =-PMT((Calculator!G18/12),Tables!B71*12,Calculator!E42,0) -> 0 | C68: =AUTO_OtherInvestmentMortgages -> 0
A69: Credit Card | B69: =SUM(Calculator!E44*0.038) -> 0 | C69: =AUTO_OtherExpenses -> 0
A71: Max term Other debts | B71: =MAX(Calculator!B20:B25) -> 30
A73: Rent Split and scale | E73: Applicants | I73: Tax Deduct Loan calc | L73: Interest Exempt
A74: Net | B74: scaled | C74: CCC + 20y | D74: term remaining | E74: split1 | F74: split2 | I74: Tax deduct 1 | J74: Tax deduct 2 | L74: yes | M74: no
A75: =SUM(-'Self Employed and Other Incomes'!C19:F19)+('Self Employed and Other Incomes'!B19) -> 0 | B75: =SUM(A75*0.9) -> 0 | C75: =EDATE('Self Employed and Other Incomes'!C27,240) -> 1919-12-31 | D75: =SUM(C75-$B$83)/365 -> -104.3863014 | E75: =SUM($B$75*'Self Employed and Other Incomes'!H19) -> 0 | F75: =SUM($B$75*'Self Employed and Other Incomes'!I19) -> 0 | I75: =-IPMT(AUTO_LoanInterestRate,1,20,'Self Employed and Other Incomes'!G19)*'Self Employed and Other Incomes'!H19 -> 0 | J75: =-IPMT(AUTO_LoanInterestRate,1,20,'Self Employed and Other Incomes'!G19)*'Self Employed and Other Incomes'!I19 -> 0
A76: =SUM(-'Self Employed and Other Incomes'!C20:F20)+('Self Employed and Other Incomes'!B20) -> 0 | B76: =SUM(A76*0.9) -> 0 | C76: =EDATE('Self Employed and Other Incomes'!#REF!,240) ->  | D76: =SUM(C76-$B$83)/365 ->  | E76: =SUM($B$76*'Self Employed and Other Incomes'!H20) -> 0 | F76: =SUM($B$76*'Self Employed and Other Incomes'!I20) -> 0 | I76: =-IPMT(AUTO_LoanInterestRate,1,20,'Self Employed and Other Incomes'!G20)*'Self Employed and Other Incomes'!H20 -> 0 | J76: =-IPMT(AUTO_LoanInterestRate,1,20,'Self Employed and Other Incomes'!G20)*'Self Employed and Other Incomes'!I20 -> 0
A77: =SUM(-'Self Employed and Other Incomes'!C21:F21)+('Self Employed and Other Incomes'!B21) -> 0 | B77: =SUM(A77*0.9) -> 0 | C77: =EDATE('Self Employed and Other Incomes'!#REF!,240) ->  | D77: =SUM(C77-$B$83)/365 ->  | E77: =SUM($B$77*'Self Employed and Other Incomes'!H21) -> 0 | F77: =SUM($B$77*'Self Employed and Other Incomes'!I21) -> 0 | I77: =-IPMT(AUTO_LoanInterestRate,1,20,'Self Employed and Other Incomes'!G21)*'Self Employed and Other Incomes'!H21 -> 0 | J77: =-IPMT(AUTO_LoanInterestRate,1,20,'Self Employed and Other Incomes'!G21)*'Self Employed and Other Incomes'!I21 -> 0 | L77: New Build date (counted)
A78: =SUM(-'Self Employed and Other Incomes'!C22:F22)+('Self Employed and Other Incomes'!B22) -> 0 | B78: =SUM(A78*0.9) -> 0 | C78: =EDATE('Self Employed and Other Incomes'!#REF!,240) ->  | D78: =SUM(C78-$B$83)/365 ->  | E78: =SUM($B$78*'Self Employed and Other Incomes'!H22) -> 0 | F78: =SUM($B$78*'Self Employed and Other Incomes'!I22) -> 0 | I78: =-IPMT(AUTO_LoanInterestRate,1,20,'Self Employed and Other Incomes'!G22)*'Self Employed and Other Incomes'!H22 -> 0 | J78: =-IPMT(AUTO_LoanInterestRate,1,20,'Self Employed and Other Incomes'!G22)*'Self Employed and Other Incomes'!I22 -> 0 | L78: 2020-03-27
A79: =SUM(-'Self Employed and Other Incomes'!C23:F23)+('Self Employed and Other Incomes'!B23) -> 0 | B79: =SUM(A79*0.9) -> 0 | C79: =EDATE('Self Employed and Other Incomes'!#REF!,240) ->  | D79: =SUM(C79-$B$83)/365 ->  | E79: =SUM($B$79*'Self Employed and Other Incomes'!H23) -> 0 | F79: =SUM($B$79*'Self Employed and Other Incomes'!I23) -> 0 | I79: =-IPMT(AUTO_LoanInterestRate,1,20,'Self Employed and Other Incomes'!G23)*'Self Employed and Other Incomes'!H23 -> 0 | J79: =-IPMT(AUTO_LoanInterestRate,1,20,'Self Employed and Other Incomes'!G23)*'Self Employed and Other Incomes'!I23 -> 0
I80: =SUM(I75:I79) -> 0 | J80: =SUM(J75:J79) -> 0
B82: Today | C82: Financials <=> 270 days
A83: Date | B83: =TODAY() -> 2024-04-24 | C83: =DATEDIF('Self Employed and Other Incomes'!B32,B83,"d") -> 45406
A86: Self Employed Assessment
A87: Current Year | B87: Total income less Depreciation | C87: Max Depreciation that can be used
A88: Applicant1 | B88: =SUM('Self Employed and Other Incomes'!B35:H35) -> 0 | C88: =MIN(B88*20%,'Self Employed and Other Incomes'!I35) -> 0
A89: Applicant 2 | B89: =SUM('Self Employed and Other Incomes'!B36:H36) -> 0 | C89: =MIN(B89*20%,'Self Employed and Other Incomes'!I36) -> 0
A90: Applicant 3 | B90: =SUM('Self Employed and Other Incomes'!B37:H37) -> 0 | C90: =SUM(B90*20%) -> 0
A91: Applicant 4 | B91: =SUM('Self Employed and Other Incomes'!B38:H38) -> 0 | C91: 0
A93: Prior Year | E93: 120% Rule
A94: Applicant1 | B94: =SUM('Self Employed and Other Incomes'!B47:H47) -> 0 | C94: =MIN(B94*20%,'Self Employed and Other Incomes'!I47) -> 0 | D94: ='Self Employed and Other Incomes'!L47 -> 0 | E94: =D94*120% -> 0
A95: Applicant 2 | B95: =SUM('Self Employed and Other Incomes'!B48:H48) -> 0 | C95: =MIN(B95*20%,'Self Employed and Other Incomes'!I48) -> 0 | D95: ='Self Employed and Other Incomes'!L48 -> 0 | E95: =D95*120% -> 0
A96: Applicant 3 | B96: =SUM('Self Employed and Other Incomes'!B49:H49) -> 0 | C96: 0 | D96: ='Self Employed and Other Incomes'!L49 -> 0 | E96: 0
A97: Applicant 4 | B97: =SUM('Self Employed and Other Incomes'!B50:H50) -> 0 | C97: 0 | D97: ='Self Employed and Other Incomes'!L50 -> 0 | E97: 0
